[Event "*** Titled Tuesday 3|2 Blitz (Late)"]
[Site "Chess.com"]
[Date "2016.11.01"]
[Round "6"]
[White "jposthuma"]
[Black "nihalsarin"]
[Result "0-1"]
[WhiteElo "2183"]
[BlackElo "2502"]
[TimeControl "180+2"]
[EndTime "18:21:25 PDT"]
[Termination "nihalsarin won by checkmate"]

1. d4 {[%clk 0:03:02]} 1... d5 {[%clk 0:03:00.3]} 2. Nf3 {[%clk 0:03:02.6]} 2...
Nf6 {[%clk 0:02:59.5]} 3. Bf4 {[%clk 0:03:03.1]} 3... Bf5 {[%clk 0:03:00.2]} 4.
e3 {[%clk 0:03:03.1]} 4... e6 {[%clk 0:03:01.4]} 5. c4 {[%clk 0:03:03.7]} 5...
Bb4+ {[%clk 0:03:01.9]} 6. Nc3 {[%clk 0:03:04.6]} 6... O-O {[%clk 0:03:02]} 7.
Bd3 {[%clk 0:03:03.7]} 7... Bxd3 {[%clk 0:03:02.7]} 8. Qxd3 {[%clk 0:03:05.6]}
8... c6 {[%clk 0:03:03]} 9. O-O {[%clk 0:03:05.4]} 9... Nbd7 {[%clk 0:03:03.5]}
10. a3 {[%clk 0:03:05.7]} 10... Bxc3 {[%clk 0:03:03.7]} 11. Qxc3 {[%clk
0:03:04.2]} 11... Ne4 {[%clk 0:03:03.6]} 12. Qc2 {[%clk 0:03:05.5]} 12... f5
{[%clk 0:03:02.6]} 13. Ne5 {[%clk 0:03:06.7]} 13... Ndf6 {[%clk 0:02:59.1]} 14.
f3 {[%clk 0:03:01.4]} 14... Nd6 {[%clk 0:03:00]} 15. c5 {[%clk 0:02:42.4]} 15...
Nf7 {[%clk 0:03:00.6]} 16. Nxf7 {[%clk 0:02:42.6]} 16... Rxf7 {[%clk 0:03:01.5]}
17. Bg5 {[%clk 0:02:43.8]} 17... Qe7 {[%clk 0:02:57.9]} 18. f4 {[%clk
0:02:40.5]} 18... Qf8 {[%clk 0:02:50.8]} 19. Bxf6 {[%clk 0:02:41]} 19... gxf6
{[%clk 0:02:44.6]} 20. b4 {[%clk 0:02:42.4]} 20... Kh8 {[%clk 0:02:44.5]} 21. a4
{[%clk 0:02:42.2]} 21... Qh6 {[%clk 0:02:43.2]} 22. b5 {[%clk 0:02:35.4]} 22...
Rg8 {[%clk 0:02:43.9]} 23. bxc6 {[%clk 0:02:33.9]} 23... bxc6 {[%clk 0:02:44.7]}
24. Ra2 {[%clk 0:02:23.9]} 24... Rfg7 {[%clk 0:02:34.7]} 25. Qb3 {[%clk
0:02:21.9]} 25... Qh3 {[%clk 0:02:26.7]} 26. Rff2 {[%clk 0:02:14.7]} 26... Rg4
{[%clk 0:02:13.3]} 27. Kh1 {[%clk 0:01:19.1]} 27... Qh5 {[%clk 0:02:13.1]} 28.
Rae2 {[%clk 0:01:01]} 28... Rh4 {[%clk 0:02:01.5]} 29. g3 {[%clk 0:00:34.3]}
29... Rxg3 {[%clk 0:02:00.2]} 30. Rg2 {[%clk 0:00:11.8]} 30... Qf3 {[%clk
0:00:42]} 31. Qb8+ {[%clk 0:00:06.8]} 31... Kg7 {[%clk 0:00:42.1]} 32. Qxa7+
{[%clk 0:00:05]} 32... Kg6 {[%clk 0:00:27.3]} 33. Kg1 {[%clk 0:00:02.8]} 33...
Qxe2 {[%clk 0:00:16.6]} 34. Rxg3+ {[%clk 0:00:04.1]} 34... Rg4 {[%clk
0:00:16.1]} 35. Rxg4+ {[%clk 0:00:05.4]} 35... fxg4 {[%clk 0:00:16.3]} 36. Qa8
{[%clk 0:00:04.5]} 36... Kf5 {[%clk 0:00:16.6]} 37. Qxc6 {[%clk 0:00:04.3]}
37... Qxe3+ {[%clk 0:00:15.7]} 38. Kg2 {[%clk 0:00:05]} 38... Qf3+ {[%clk
0:00:16.1]} 39. Kg1 {[%clk 0:00:06.5]} 39... Qd1+ {[%clk 0:00:17.2]} 40. Kg2
{[%clk 0:00:07.4]} 40... Qxd4 {[%clk 0:00:18.3]} 41. Qd7 {[%clk 0:00:07.6]}
41... Qxc5 {[%clk 0:00:17.2]} 42. Qxh7+ {[%clk 0:00:08.4]} 42... Kxf4 {[%clk
0:00:18.6]} 43. Qh6+ {[%clk 0:00:09.9]} 43... Kf5 {[%clk 0:00:18.9]} 44. Qh5+
{[%clk 0:00:10.9]} 44... Kf4 {[%clk 0:00:20.3]} 45. Qh6+ {[%clk 0:00:12.4]}
45... Ke5 {[%clk 0:00:21]} 46. Qh5+ {[%clk 0:00:10.8]} 46... f5 {[%clk 0:00:22]}
47. Qh8+ {[%clk 0:00:11]} 47... Ke4 {[%clk 0:00:23.2]} 48. Qb2 {[%clk
0:00:10.2]} 48... f4 {[%clk 0:00:24.3]} 49. Qb1+ {[%clk 0:00:08.8]} 49... Ke5
{[%clk 0:00:24.9]} 50. Qb2+ {[%clk 0:00:09.5]} 50... Kf5 {[%clk 0:00:25.8]} 51.
Qb1+ {[%clk 0:00:10.3]} 51... Kg5 {[%clk 0:00:27.1]} 52. a5 {[%clk 0:00:09.2]}
52... f3+ {[%clk 0:00:28]} 53. Kh1 {[%clk 0:00:06.2]} 53... Qxa5 {[%clk
0:00:28.4]} 54. Qc1+ {[%clk 0:00:04]} 54... Kf5 {[%clk 0:00:29.8]} 55. Qb1+
{[%clk 0:00:05.1]} 55... Ke5 {[%clk 0:00:31]} 56. Qb2+ {[%clk 0:00:06.5]} 56...
d4 {[%clk 0:00:30.6]} 57. Qf2 {[%clk 0:00:05.9]} 57... Qa1+ {[%clk 0:00:31.2]}
58. Qg1 {[%clk 0:00:06.1]} 58... Qxg1+ {[%clk 0:00:32.2]} 59. Kxg1 {[%clk
0:00:08]} 59... Kf4 {[%clk 0:00:33.8]} 60. Kf2 {[%clk 0:00:09.9]} 60... e5
{[%clk 0:00:35.3]} 61. Kf1 {[%clk 0:00:11.3]} 61... e4 {[%clk 0:00:36.7]} 62.
Kf2 {[%clk 0:00:13.2]} 62... e3+ {[%clk 0:00:38.1]} 63. Kf1 {[%clk 0:00:15.1]}
63... d3 {[%clk 0:00:40]} 64. Ke1 {[%clk 0:00:16.9]} 64... f2+ {[%clk
0:00:41.1]} 65. Kf1 {[%clk 0:00:18.2]} 65... Kf3 {[%clk 0:00:42.4]} 66. h3
{[%clk 0:00:19.1]} 66... e2# {[%clk 0:00:44.3]} 0-1

[Event "*** Titled Tuesday 3|2 Blitz (Late)"]
[Site "Chess.com"]
[Date "2016.11.01"]
[Round "6"]
[White "Fandorine"]
[Black "AlexanderL"]
[Result "0-1"]
[WhiteElo "2645"]
[BlackElo "2598"]
[TimeControl "180+2"]
[EndTime "18:21:44 PDT"]
[Termination "AlexanderL won by resignation"]

1. e4 {[%clk 0:03:02]} 1... e6 {[%clk 0:03:01.8]} 2. d4 {[%clk 0:02:52.5]} 2...
d5 {[%clk 0:03:01.9]} 3. Nc3 {[%clk 0:02:54.1]} 3... Nf6 {[%clk 0:03:01.9]} 4.
e5 {[%clk 0:02:54.2]} 4... Nfd7 {[%clk 0:03:02.6]} 5. f4 {[%clk 0:02:53.6]} 5...
c5 {[%clk 0:03:03.4]} 6. Nf3 {[%clk 0:02:54.1]} 6... Be7 {[%clk 0:02:59.9]} 7.
Be3 {[%clk 0:02:55]} 7... O-O {[%clk 0:02:59.6]} 8. Qd2 {[%clk 0:02:55.1]} 8...
b6 {[%clk 0:02:59]} 9. Nd1 {[%clk 0:02:56.7]} 9... a5 {[%clk 0:02:58.3]} 10. c3
{[%clk 0:02:35]} 10... a4 {[%clk 0:02:58.7]} 11. Bd3 {[%clk 0:02:36.1]} 11...
Ba6 {[%clk 0:02:58.8]} 12. Bc2 {[%clk 0:02:35.7]} 12... Bb5 {[%clk 0:02:39.9]}
13. Nf2 {[%clk 0:02:34.5]} 13... Nc6 {[%clk 0:02:38.7]} 14. Bd3 {[%clk
0:02:18.1]} 14... Bxd3 {[%clk 0:02:38.4]} 15. Nxd3 {[%clk 0:02:16]} 15... c4
{[%clk 0:02:31.5]} 16. Nc1 {[%clk 0:01:52.9]} 16... a3 {[%clk 0:02:26.2]} 17. b4
{[%clk 0:01:53.4]} 17... cxb3 {[%clk 0:02:26.5]} 18. axb3 {[%clk 0:01:50.7]}
18... Na5 {[%clk 0:02:26.2]} 19. Qd3 {[%clk 0:01:49.2]} 19... Qc8 {[%clk
0:02:18.7]} 20. Nd2 {[%clk 0:01:49.4]} 20... Qc6 {[%clk 0:02:14.6]} 21. O-O
{[%clk 0:01:43.2]} 21... Rfc8 {[%clk 0:02:14.3]} 22. Na2 {[%clk 0:01:42.6]}
22... f5 {[%clk 0:02:10.2]} 23. Rfc1 {[%clk 0:01:40.8]} 23... Qb7 {[%clk
0:02:04.6]} 24. c4 {[%clk 0:01:21.4]} 24... Qa6 {[%clk 0:02:04.6]} 25. Kf2
{[%clk 0:01:13.3]} 25... Nc6 {[%clk 0:02:03.8]} 26. Ke2 {[%clk 0:01:07.5]} 26...
Nb4 {[%clk 0:01:59.8]} 27. Nxb4 {[%clk 0:01:08.4]} 27... Bxb4 {[%clk 0:02:01.7]}
28. cxd5 {[%clk 0:00:52.7]} 28... Rxc1 {[%clk 0:01:45.3]} 29. Rxc1 {[%clk
0:00:51]} 29... exd5 {[%clk 0:01:38]} 30. Qxa6 {[%clk 0:00:30.2]} 30... Rxa6
{[%clk 0:01:38.5]} 31. Ra1 {[%clk 0:00:31.9]} 31... Nb8 {[%clk 0:01:09.5]} 32.
Ra2 {[%clk 0:00:22.9]} 32... Nc6 {[%clk 0:01:09.5]} 33. Nb1 {[%clk 0:00:21]}
33... Be7 {[%clk 0:01:02.1]} 34. Ra1 {[%clk 0:00:06]} 34... Kf7 {[%clk
0:00:56.4]} 35. Nc3 {[%clk 0:00:06]} 35... Ke6 {[%clk 0:00:54.1]} 36. Kd2 {[%clk
0:00:05.3]} 36... Bb4 {[%clk 0:00:43.6]} 37. Kd3 {[%clk 0:00:06.5]} 37... Bxc3
{[%clk 0:00:45]} 38. Kxc3 {[%clk 0:00:08.4]} 38... b5 {[%clk 0:00:46.8]} 39. b4
{[%clk 0:00:09.9]} 39... Ra4 {[%clk 0:00:47.3]} 40. Bc1 {[%clk 0:00:08.5]} 40...
Nxb4 {[%clk 0:00:23.7]} 41. Rxa3 {[%clk 0:00:02.7]} 41... Na2+ {[%clk
0:00:24.4]} 42. Kc2 {[%clk 0:00:04]} 42... Rc4+ {[%clk 0:00:23.7]} 43. Kb2
{[%clk 0:00:05.5]} 43... Nxc1 {[%clk 0:00:24.1]} 44. Ra6+ {[%clk 0:00:07.1]}
44... Kf7 {[%clk 0:00:17.8]} 45. Ra7+ {[%clk 0:00:08.5]} 45... Kg6 {[%clk
0:00:18.8]} 46. Ra6+ {[%clk 0:00:09.3]} 46... Kh5 {[%clk 0:00:17.3]} 47. g3
{[%clk 0:00:07.8]} 47... Nd3+ {[%clk 0:00:16.7]} 48. Kb3 {[%clk 0:00:08.8]}
48... b4 {[%clk 0:00:14.4]} 49. Ra7 {[%clk 0:00:06.8]} 49... Kh6 {[%clk
0:00:13.6]} 50. Rd7 {[%clk 0:00:06.6]} 50... Rxd4 {[%clk 0:00:14.3]} 51. e6
{[%clk 0:00:07.1]} 51... Nc5+ {[%clk 0:00:14.9]} 52. Kb2 {[%clk 0:00:08]} 52...
Nxe6 {[%clk 0:00:13.2]} 53. Rd6 {[%clk 0:00:09.1]} 53... Re4 {[%clk 0:00:14.5]}
54. Rxd5 {[%clk 0:00:11]} 54... g6 {[%clk 0:00:15]} 55. Kc2 {[%clk 0:00:12.3]}
55... Re2+ {[%clk 0:00:14.6]} 56. Kd3 {[%clk 0:00:13.6]} 56... Rxh2 {[%clk
0:00:15.6]} 57. Rd6 {[%clk 0:00:15.1]} 57... Ng7 {[%clk 0:00:15.5]} 58. Kc4
{[%clk 0:00:16.1]} 58... Nh5 {[%clk 0:00:16.5]} 59. Kxb4 {[%clk 0:00:17]} 59...
Nxg3 {[%clk 0:00:17.4]} 60. Kc5 {[%clk 0:00:18.9]} 60... Ne4+ {[%clk 0:00:18.1]}
0-1

[Event "*** Titled Tuesday 3|2 Blitz (Late)"]
[Site "Chess.com"]
[Date "2016.11.01"]
[Round "7"]
[White "Gabrielian_Artur"]
[Black "jcibarra"]
[Result "1-0"]
[WhiteElo "2566"]
[BlackElo "2651"]
[TimeControl "180+2"]
[EndTime "18:27:57 PDT"]
[Termination "Gabrielian_Artur won by resignation"]

1. e4 {[%clk 0:03:00.3]} 1... e5 {[%clk 0:03:00.7]} 2. Nf3 {[%clk 0:03:00.3]}
2... d6 {[%clk 0:03:02]} 3. d4 {[%clk 0:02:59.9]} 3... exd4 {[%clk 0:03:03.9]}
4. Nxd4 {[%clk 0:03:01.1]} 4... Nf6 {[%clk 0:03:05.5]} 5. Nc3 {[%clk 0:03:02.1]}
5... Be7 {[%clk 0:03:07.1]} 6. g3 {[%clk 0:03:02]} 6... d5 {[%clk 0:03:07.2]} 7.
e5 {[%clk 0:03:02.2]} 7... Ng4 {[%clk 0:03:08.8]} 8. e6 {[%clk 0:03:03.5]} 8...
Nf6 {[%clk 0:03:09.5]} 9. exf7+ {[%clk 0:03:01]} 9... Kxf7 {[%clk 0:03:11.4]}
10. Bg2 {[%clk 0:03:02.2]} 10... c6 {[%clk 0:03:12.2]} 11. O-O {[%clk
0:03:02.9]} 11... Re8 {[%clk 0:03:13.8]} 12. h3 {[%clk 0:03:04.2]} 12... Na6
{[%clk 0:03:15.3]} 13. b3 {[%clk 0:03:02.2]} 13... Nc7 {[%clk 0:03:14.8]} 14.
Bb2 {[%clk 0:03:03.4]} 14... c5 {[%clk 0:03:16.3]} 15. Nf3 {[%clk 0:03:03.6]}
15... d4 {[%clk 0:03:16.6]} 16. Ne2 {[%clk 0:03:01.1]} 16... Kg8 {[%clk
0:03:10.3]} 17. Nf4 {[%clk 0:03:01.8]} 17... Ncd5 {[%clk 0:03:05.3]} 18. Nxd5
{[%clk 0:02:49.8]} 18... Nxd5 {[%clk 0:03:07.2]} 19. Qd2 {[%clk 0:02:51.3]}
19... Bf6 {[%clk 0:03:06.3]} 20. Rfe1 {[%clk 0:02:50.8]} 20... Rxe1+ {[%clk
0:02:59.5]} 21. Rxe1 {[%clk 0:02:51.2]} 21... Bf5 {[%clk 0:03:01.1]} 22. g4
{[%clk 0:02:49]} 22... Bg6 {[%clk 0:03:01]} 23. g5 {[%clk 0:02:50.1]} 23... Be7
{[%clk 0:03:01.8]} 24. Ne5 {[%clk 0:02:47.1]} 24... Bf5 {[%clk 0:02:47.6]} 25.
h4 {[%clk 0:02:23.5]} 25... Rc8 {[%clk 0:02:32]} 26. Qe2 {[%clk 0:02:23.8]}
26... Nf4 {[%clk 0:02:18.3]} 27. Qf3 {[%clk 0:02:13.4]} 27... Nxg2 {[%clk
0:02:14.2]} 28. Qxf5 {[%clk 0:02:10]} 1-0

[Event "*** Titled Tuesday 3|2 Blitz (Late)"]
[Site "Chess.com"]
[Date "2016.11.01"]
[Round "7"]
[White "pKiLz5Rn9b"]
[Black "Alexander_Moskalenko"]
[Result "0-1"]
[WhiteElo "2511"]
[BlackElo "2660"]
[TimeControl "180+2"]
[EndTime "18:29:51 PDT"]
[Termination "Alexander_Moskalenko won by checkmate"]

1. e4 {[%clk 0:03:01.9]} 1... c5 {[%clk 0:03:00.2]} 2. c3 {[%clk 0:03:02.3]}
2... Nf6 {[%clk 0:03:00]} 3. e5 {[%clk 0:03:03.6]} 3... Nd5 {[%clk 0:03:01.5]}
4. d4 {[%clk 0:03:05]} 4... cxd4 {[%clk 0:03:03.4]} 5. cxd4 {[%clk 0:03:06.9]}
5... d6 {[%clk 0:03:04.7]} 6. Nf3 {[%clk 0:03:08.5]} 6... Nc6 {[%clk 0:03:02.3]}
7. Bc4 {[%clk 0:03:09.4]} 7... e6 {[%clk 0:03:03.7]} 8. O-O {[%clk 0:03:09.5]}
8... Be7 {[%clk 0:03:04.9]} 9. Bd2 {[%clk 0:03:10.9]} 9... O-O {[%clk 0:02:46]}
10. Qe2 {[%clk 0:03:11.6]} 10... Bd7 {[%clk 0:02:00]} 11. Nc3 {[%clk 0:03:08]}
11... Nxc3 {[%clk 0:01:57.4]} 12. Bxc3 {[%clk 0:03:05.6]} 12... dxe5 {[%clk
0:01:59.3]} 13. dxe5 {[%clk 0:03:06.6]} 13... Qc7 {[%clk 0:01:56.8]} 14. Rac1
{[%clk 0:03:06.8]} 14... Rac8 {[%clk 0:01:54.7]} 15. Rfd1 {[%clk 0:03:05.9]}
15... Rfd8 {[%clk 0:01:49.5]} 16. Bd3 {[%clk 0:03:07.1]} 16... g6 {[%clk
0:01:45.8]} 17. Be4 {[%clk 0:03:08.1]} 17... Be8 {[%clk 0:01:42.1]} 18. h4
{[%clk 0:03:08.1]} 18... Rxd1+ {[%clk 0:01:38.3]} 19. Rxd1 {[%clk 0:03:06.9]}
19... Rd8 {[%clk 0:01:39.8]} 20. h5 {[%clk 0:03:05.7]} 20... Rxd1+ {[%clk
0:01:37.8]} 21. Qxd1 {[%clk 0:03:07.6]} 21... b5 {[%clk 0:01:39.6]} 22. hxg6
{[%clk 0:03:03.1]} 22... hxg6 {[%clk 0:01:41]} 23. b3 {[%clk 0:02:55.3]} 23...
Nb4 {[%clk 0:01:35.2]} 24. Bxb4 {[%clk 0:02:24.3]} 24... Bxb4 {[%clk 0:01:33.8]}
25. g3 {[%clk 0:02:19.3]} 25... Kg7 {[%clk 0:01:34.7]} 26. Kg2 {[%clk
0:02:18.9]} 26... a5 {[%clk 0:01:35]} 27. Qd4 {[%clk 0:02:14.4]} 27... Bc5
{[%clk 0:01:21.9]} 28. Qd1 {[%clk 0:02:14.1]} 28... Bb6 {[%clk 0:01:18.2]} 29.
Qe2 {[%clk 0:02:06.2]} 29... Qc5 {[%clk 0:01:16.1]} 30. Bd3 {[%clk 0:02:06.7]}
30... Bc6 {[%clk 0:01:11]} 31. Kf1 {[%clk 0:01:58.7]} 31... Qd5 {[%clk
0:01:07.2]} 32. Ne1 {[%clk 0:01:22.3]} 32... Qh1# {[%clk 0:01:07.3]} 0-1

[Event "*** Titled Tuesday 3|2 Blitz (Late)"]
[Site "Chess.com"]
[Date "2016.11.01"]
[Round "7"]
[White "BellJackson95"]
[Black "stalyansky"]
[Result "1-0"]
[WhiteElo "2235"]
[BlackElo "2187"]
[TimeControl "180+2"]
[EndTime "18:30:11 PDT"]
[Termination "BellJackson95 won on time"]

1. d4 {[%clk 0:03:01.9]} 1... d5 {[%clk 0:03:00.9]} 2. c4 {[%clk 0:03:01]} 2...
c6 {[%clk 0:03:01.5]} 3. Nc3 {[%clk 0:03:01.1]} 3... Nf6 {[%clk 0:03:02.7]} 4.
cxd5 {[%clk 0:03:01.6]} 4... cxd5 {[%clk 0:03:02.9]} 5. f3 {[%clk 0:03:02.3]}
5... Nc6 {[%clk 0:02:56.7]} 6. e4 {[%clk 0:03:01.8]} 6... dxe4 {[%clk
0:02:55.3]} 7. d5 {[%clk 0:03:03.7]} 7... Ne5 {[%clk 0:02:31.9]} 8. fxe4 {[%clk
0:03:02.3]} 8... e6 {[%clk 0:02:27.2]} 9. Nf3 {[%clk 0:03:02.3]} 9... Nxf3+
{[%clk 0:02:21.6]} 10. Qxf3 {[%clk 0:03:04.2]} 10... exd5 {[%clk 0:02:14]} 11.
e5 {[%clk 0:03:01.7]} 11... Ne4 {[%clk 0:01:10.2]} 12. Bb5+ {[%clk 0:03:00.6]}
12... Bd7 {[%clk 0:01:08.8]} 13. Rf1 {[%clk 0:03:02.5]} 13... f6 {[%clk
0:00:56.4]} 14. exf6 {[%clk 0:03:00.3]} 14... Nxf6 {[%clk 0:00:55.6]} 15. Qe2+
{[%clk 0:03:00.4]} 15... Be7 {[%clk 0:00:52.6]} 16. Rxf6 {[%clk 0:02:32]} 16...
d4 {[%clk 0:00:37.4]} 17. Qh5+ {[%clk 0:02:12.7]} 17... g6 {[%clk 0:00:33.7]}
18. Rxg6 {[%clk 0:02:12.8]} 18... hxg6 {[%clk 0:00:26.2]} 19. Qxh8+ {[%clk
0:02:11.6]} 19... Bf8 {[%clk 0:00:24.7]} 20. Qxd4 {[%clk 0:02:01.4]} 20... Qe7+
{[%clk 0:00:07.4]} 21. Be3 {[%clk 0:01:58.8]} 21... Bxb5 {[%clk 0:00:07.4]} 22.
Nxb5 {[%clk 0:01:57]} 22... Rd8 {[%clk 0:00:05.9]} 23. Qc3 {[%clk 0:01:48.1]}
23... Qe4 {[%clk 0:00:02.6]} 24. Kf2 {[%clk 0:01:31.9]} 1-0

[Event "*** Titled Tuesday 3|2 Blitz (Late)"]
[Site "Chess.com"]
[Date "2016.11.01"]
[Round "7"]
[White "popov_m"]
[Black "brightthunder"]
[Result "1-0"]
[WhiteElo "2301"]
[BlackElo "2527"]
[TimeControl "180+2"]
[EndTime "18:30:59 PDT"]
[Termination "popov_m won by resignation"]

1. c4 {[%clk 0:03:01.9]} 1... Nf6 {[%clk 0:03:00.5]} 2. g3 {[%clk 0:03:02.8]}
2... c5 {[%clk 0:02:57.8]} 3. Bg2 {[%clk 0:03:03.9]} 3... e6 {[%clk 0:02:58.8]}
4. Nf3 {[%clk 0:03:04]} 4... a6 {[%clk 0:03:00]} 5. O-O {[%clk 0:03:02.5]} 5...
Qc7 {[%clk 0:03:01.5]} 6. b3 {[%clk 0:02:58.3]} 6... b6 {[%clk 0:03:01.3]} 7. d4
{[%clk 0:02:58]} 7... cxd4 {[%clk 0:03:01.5]} 8. Nxd4 {[%clk 0:02:48.6]} 8...
Bb7 {[%clk 0:03:00.1]} 9. Bxb7 {[%clk 0:02:49.7]} 9... Qxb7 {[%clk 0:03:02]} 10.
Nc3 {[%clk 0:02:51]} 10... Be7 {[%clk 0:03:01.8]} 11. Bb2 {[%clk 0:02:49]} 11...
O-O {[%clk 0:03:02.4]} 12. a4 {[%clk 0:02:45.1]} 12... d6 {[%clk 0:03:02]} 13.
a5 {[%clk 0:02:33.8]} 13... bxa5 {[%clk 0:03:01.4]} 14. Ba3 {[%clk 0:02:20.4]}
14... Nc6 {[%clk 0:02:54.4]} 15. Nxc6 {[%clk 0:02:18.9]} 15... Qxc6 {[%clk
0:02:56.3]} 16. Na4 {[%clk 0:02:10]} 16... Rab8 {[%clk 0:02:55.2]} 17. Qd3
{[%clk 0:02:07.7]} 17... Rfd8 {[%clk 0:02:37.3]} 18. Rfd1 {[%clk 0:02:03.4]}
18... Bf8 {[%clk 0:02:38.1]} 19. Rab1 {[%clk 0:01:44.1]} 19... Rd7 {[%clk
0:02:37.7]} 20. Qc3 {[%clk 0:01:42.5]} 20... Rdb7 {[%clk 0:02:34.3]} 21. Rd3
{[%clk 0:01:02.4]} 21... Ne4 {[%clk 0:01:40]} 22. Qxa5 {[%clk 0:00:58.7]} 22...
h6 {[%clk 0:01:23.2]} 23. h4 {[%clk 0:00:34.3]} 23... Nf6 {[%clk 0:01:20.7]} 24.
Qd2 {[%clk 0:00:31.2]} 24... Ne4 {[%clk 0:01:16]} 25. Qe3 {[%clk 0:00:30.9]}
25... Nf6 {[%clk 0:01:10.8]} 26. Rbd1 {[%clk 0:00:31]} 26... d5 {[%clk
0:01:11.5]} 27. Bxf8 {[%clk 0:00:31.4]} 27... Kxf8 {[%clk 0:01:10.6]} 28. cxd5
{[%clk 0:00:28.6]} 28... Nxd5 {[%clk 0:01:10.7]} 29. Qc5+ {[%clk 0:00:28.8]}
29... Qxc5 {[%clk 0:01:11.5]} 30. Nxc5 {[%clk 0:00:30.7]} 30... Ra7 {[%clk
0:01:11.3]} 31. e4 {[%clk 0:00:28.8]} 31... Nb4 {[%clk 0:01:06.9]} 32. Nd7+
{[%clk 0:00:28.9]} 1-0

[Event "*** Titled Tuesday 3|2 Blitz (Late)"]
[Site "Chess.com"]
[Date "2016.11.01"]
[Round "7"]
[White "theprosecution1"]
[Black "hardingstoptry"]
[Result "1-0"]
[WhiteElo "2519"]
[BlackElo "2573"]
[TimeControl "180+2"]
[EndTime "18:31:49 PDT"]
[Termination "theprosecution1 won by resignation"]

1. e4 {[%clk 0:03:02]} 1... e5 {[%clk 0:02:57.8]} 2. Nf3 {[%clk 0:03:02.6]} 2...
d6 {[%clk 0:02:58.1]} 3. d4 {[%clk 0:03:03]} 3... Nf6 {[%clk 0:02:58.2]} 4. dxe5
{[%clk 0:03:00.9]} 4... Nxe4 {[%clk 0:02:59.3]} 5. Qd5 {[%clk 0:03:01.9]} 5...
Nc5 {[%clk 0:02:57.2]} 6. Bg5 {[%clk 0:03:02.6]} 6... Be7 {[%clk 0:02:53.9]} 7.
exd6 {[%clk 0:03:02.8]} 7... cxd6 {[%clk 0:02:54.4]} 8. Nc3 {[%clk 0:02:59.9]}
8... O-O {[%clk 0:02:49.1]} 9. O-O-O {[%clk 0:02:54.9]} 9... Be6 {[%clk
0:02:50.1]} 10. Bxe7 {[%clk 0:02:50.2]} 10... Qxe7 {[%clk 0:02:47.7]} 11. Qxd6
{[%clk 0:02:51.6]} 11... Nc6 {[%clk 0:02:48]} 12. Qxe7 {[%clk 0:02:43.6]} 12...
Nxe7 {[%clk 0:02:49.9]} 13. Nd4 {[%clk 0:02:41.6]} 13... Nc6 {[%clk 0:02:49]}
14. Nxc6 {[%clk 0:02:36.3]} 14... bxc6 {[%clk 0:02:50.9]} 15. Be2 {[%clk
0:02:37.8]} 15... Rac8 {[%clk 0:02:42.4]} 16. Bf3 {[%clk 0:02:26.6]} 16... Nd7
{[%clk 0:02:43]} 17. Rhe1 {[%clk 0:02:23]} 17... Nf6 {[%clk 0:02:42.2]} 18. Rd6
{[%clk 0:02:20]} 18... Rfd8 {[%clk 0:02:41.1]} 19. Rxc6 {[%clk 0:02:18]} 19...
Rxc6 {[%clk 0:02:38.3]} 20. Bxc6 {[%clk 0:02:19.9]} 20... Ng4 {[%clk 0:02:40.2]}
21. f3 {[%clk 0:02:19.1]} 21... Nf6 {[%clk 0:02:37.5]} 22. b4 {[%clk 0:02:11.1]}
22... Kf8 {[%clk 0:02:35.5]} 23. a4 {[%clk 0:02:10.7]} 23... Rd4 {[%clk
0:02:34.9]} 24. b5 {[%clk 0:02:09.6]} 24... Rc4 {[%clk 0:02:35]} 25. Kb2 {[%clk
0:02:09.7]} 25... h5 {[%clk 0:02:32.5]} 26. Re3 {[%clk 0:02:08]} 26... Ne8
{[%clk 0:02:29.9]} 27. Bxe8 {[%clk 0:01:54.1]} 27... Kxe8 {[%clk 0:02:31.8]} 28.
Re4 {[%clk 0:01:35.3]} 28... Rc8 {[%clk 0:02:26.9]} 29. Ne2 {[%clk 0:01:33.5]}
29... Kd7 {[%clk 0:02:25.3]} 30. Nf4 {[%clk 0:01:32.7]} 30... g6 {[%clk
0:02:24.9]} 31. Nxe6 {[%clk 0:01:33.1]} 31... fxe6 {[%clk 0:02:25.3]} 32. c4
{[%clk 0:01:34.6]} 32... Ke7 {[%clk 0:02:23.8]} 33. Kc3 {[%clk 0:01:34.7]} 33...
a5 {[%clk 0:02:22.1]} 34. bxa6 {[%clk 0:01:31.4]} 34... Ra8 {[%clk 0:02:12.5]}
35. c5 {[%clk 0:01:32.2]} 35... Rxa6 {[%clk 0:02:12]} 36. Kb4 {[%clk 0:01:33.7]}
36... Ra8 {[%clk 0:02:11.3]} 37. Rd4 {[%clk 0:01:16.2]} 37... Rb8+ {[%clk
0:02:01.2]} 38. Ka5 {[%clk 0:01:16]} 38... Rb2 {[%clk 0:02:00.5]} 39. c6 {[%clk
0:01:03.2]} 39... Rxg2 {[%clk 0:01:58.8]} 40. Kb6 {[%clk 0:01:04.4]} 40... Rxh2
{[%clk 0:01:57.1]} 41. c7 {[%clk 0:01:05.4]} 41... Rb2+ {[%clk 0:01:54.2]} 42.
Kc6 {[%clk 0:00:58.3]} 42... Rc2+ {[%clk 0:01:54.9]} 43. Kb7 {[%clk 0:00:59.3]}
43... Rb2+ {[%clk 0:01:52.9]} 44. Kc8 {[%clk 0:00:50.7]} 44... h4 {[%clk
0:01:49.4]} 45. Rd7+ {[%clk 0:00:51.5]} 45... Ke8 {[%clk 0:01:47.8]} 46. Rh7
{[%clk 0:00:52.4]} 46... e5 {[%clk 0:01:44.6]} 47. Rxh4 {[%clk 0:00:50.6]} 47...
Kf7 {[%clk 0:01:45.1]} 48. Kd7 {[%clk 0:00:43.4]} 48... Rd2+ {[%clk 0:01:44.5]}
49. Kc6 {[%clk 0:00:44.6]} 49... Rc2+ {[%clk 0:01:44.7]} 50. Kd6 {[%clk
0:00:46.2]} 50... g5 {[%clk 0:01:42.6]} 51. Rh8 {[%clk 0:00:46.7]} 51... g4
{[%clk 0:01:38.8]} 52. fxg4 {[%clk 0:00:47.2]} 52... e4 {[%clk 0:01:36.6]} 53.
c8=Q {[%clk 0:00:48.1]} 1-0